[Event "*** Titled Tuesday Blitz"]
[Site "Chess.com"]
[Date "2021.02.16"]
[Round "3"]
[White "IsaacWiebe"]
[Black "lucachess49"]
[Result "1-0"]
[WhiteElo "2199"]
[BlackElo "2353"]
[TimeControl "180+1"]
[EndTime "10:29:44 PST"]
[Termination "IsaacWiebe won by checkmate"]

1. b3 {[%clk 0:03:00.9]} 1... Nf6 {[%clk 0:02:59.1]} 2. Bb2 {[%clk 0:03:01.1]}
2... d6 {[%clk 0:02:58.9]} 3. c4 {[%clk 0:03:01.3]} 3... Nbd7 {[%clk 0:02:58.5]}
4. g3 {[%clk 0:02:57.7]} 4... g6 {[%clk 0:02:59]} 5. Bg2 {[%clk 0:02:57.8]} 5...
Bg7 {[%clk 0:02:58.8]} 6. Nf3 {[%clk 0:02:58.5]} 6... O-O {[%clk 0:02:59.3]} 7.
O-O {[%clk 0:02:58.9]} 7... c6 {[%clk 0:02:59.9]} 8. d3 {[%clk 0:02:57]} 8... e5
{[%clk 0:02:59.9]} 9. Nbd2 {[%clk 0:02:56.9]} 9... Qe7 {[%clk 0:02:58.3]} 10.
Rc1 {[%clk 0:02:56.3]} 10... b6 {[%clk 0:02:31.9]} 11. Qc2 {[%clk 0:02:54]}
11... Bb7 {[%clk 0:02:31.3]} 12. Rfd1 {[%clk 0:01:55]} 12... Rac8 {[%clk
0:02:29.5]} 13. Qb1 {[%clk 0:01:50.1]} 13... c5 {[%clk 0:01:27.8]} 14. Ne4
{[%clk 0:01:30]} 14... Nxe4 {[%clk 0:01:24.8]} 15. dxe4 {[%clk 0:01:29.9]} 15...
f5 {[%clk 0:01:25.4]} 16. exf5 {[%clk 0:01:21.9]} 16... gxf5 {[%clk 0:01:25.1]}
17. Nh4 {[%clk 0:01:20.6]} 17... Bxg2 {[%clk 0:01:23.8]} 18. Kxg2 {[%clk
0:01:08.4]} 18... Qe6 {[%clk 0:00:49.8]} 19. Qd3 {[%clk 0:01:05.5]} 19... e4
{[%clk 0:00:45.1]} 20. Qxd6 {[%clk 0:00:55]} 20... Qxd6 {[%clk 0:00:42.8]} 21.
Rxd6 {[%clk 0:00:55]} 21... Bxb2 {[%clk 0:00:43.4]} 22. Rc2 {[%clk 0:00:54.3]}
22... Bf6 {[%clk 0:00:19.9]} 23. Rxd7 {[%clk 0:00:52.7]} 23... Bxh4 {[%clk
0:00:20.6]} 24. gxh4 {[%clk 0:00:53.3]} 24... Rf7 {[%clk 0:00:20.2]} 25. Rcd2
{[%clk 0:00:51.8]} 25... Rcf8 {[%clk 0:00:20.5]} 26. e3 {[%clk 0:00:50.9]} 26...
Kg7 {[%clk 0:00:20.7]} 27. Kg3 {[%clk 0:00:50]} 27... Kf6 {[%clk 0:00:20.9]} 28.
Kf4 {[%clk 0:00:47]} 28... Ke6 {[%clk 0:00:21.2]} 29. R2d6# {[%clk 0:00:46.6]}
1-0

[Event "*** Titled Tuesday Blitz"]
[Site "Chess.com"]
[Date "2021.02.16"]
[Round "3"]
[White "Trickster_Pony"]
[Black "NikolaN98"]
[Result "0-1"]
[WhiteElo "1505"]
[BlackElo "2470"]
[TimeControl "180+1"]
[EndTime "10:29:46 PST"]
[Termination "NikolaN98 won on time"]

1. c4 {[%clk 0:02:47.8]} 1... f5 {[%clk 0:02:54.1]} 2. g3 {[%clk 0:02:45.3]}
2... Nf6 {[%clk 0:02:39.2]} 3. Bg2 {[%clk 0:02:37.4]} 3... h5 {[%clk 0:02:39.1]}
4. Nf3 {[%clk 0:02:33.1]} 4... d6 {[%clk 0:02:33.1]} 5. d4 {[%clk 0:02:30.9]}
5... c6 {[%clk 0:02:23.1]} 6. Nc3 {[%clk 0:02:24.6]} 6... Qc7 {[%clk 0:02:19.2]}
7. O-O {[%clk 0:02:22]} 7... e5 {[%clk 0:02:17.2]} 8. dxe5 {[%clk 0:02:05.6]}
8... dxe5 {[%clk 0:02:16.6]} 9. Bg5 {[%clk 0:02:03.2]} 9... Be6 {[%clk
0:02:01.8]} 10. b3 {[%clk 0:01:56]} 10... Nbd7 {[%clk 0:02:01.2]} 11. Rc1 {[%clk
0:01:52.2]} 11... Bc5 {[%clk 0:01:47.2]} 12. a3 {[%clk 0:01:37.1]} 12... Bxa3
{[%clk 0:01:42.6]} 13. Rc2 {[%clk 0:01:32.7]} 13... Bc5 {[%clk 0:01:33.5]} 14.
b4 {[%clk 0:01:15.7]} 14... Bxb4 {[%clk 0:01:25.3]} 15. Nd5 {[%clk 0:01:15.5]}
15... Qa5 {[%clk 0:01:09.8]} 16. Nxf6+ {[%clk 0:00:26.7]} 16... gxf6 {[%clk
0:01:05.9]} 17. Bd2 {[%clk 0:00:19.4]} 17... O-O-O {[%clk 0:00:54.8]} 18. Qb1
{[%clk 0:00:04.6]} 18... Bxd2 {[%clk 0:00:47.2]} 19. Ra2 {[%clk 0:00:02.2]}
19... Qb6 {[%clk 0:00:45.3]} 0-1

[Event "*** Titled Tuesday Blitz"]
[Site "Chess.com"]
[Date "2021.02.16"]
[Round "3"]
[White "Happy1712Drummer"]
[Black "Nikolakis2014"]
[Result "0-1"]
[WhiteElo "2423"]
[BlackElo "2641"]
[TimeControl "180+1"]
[EndTime "10:29:47 PST"]
[Termination "Nikolakis2014 won on time"]

1. Nf3 {[%clk 0:02:57.4]} 1... Nf6 {[%clk 0:02:57.6]} 2. d4 {[%clk 0:02:57.1]}
2... g6 {[%clk 0:02:57.2]} 3. c3 {[%clk 0:02:56.4]} 3... Bg7 {[%clk 0:02:57]} 4.
Bg5 {[%clk 0:02:56.2]} 4... d6 {[%clk 0:02:57.2]} 5. Nbd2 {[%clk 0:02:55.9]}
5... O-O {[%clk 0:02:57.3]} 6. e3 {[%clk 0:02:56.1]} 6... Qe8 {[%clk 0:02:54.6]}
7. Bc4 {[%clk 0:02:44.6]} 7... Nc6 {[%clk 0:02:49.8]} 8. O-O {[%clk 0:02:40]}
8... e5 {[%clk 0:02:49.5]} 9. a4 {[%clk 0:02:33.2]} 9... a6 {[%clk 0:02:43.6]}
10. b4 {[%clk 0:02:05.7]} 10... h6 {[%clk 0:02:41.1]} 11. Bh4 {[%clk 0:01:32.8]}
11... Kh8 {[%clk 0:02:39.4]} 12. b5 {[%clk 0:01:19.5]} 12... Na5 {[%clk
0:02:17.7]} 13. Be2 {[%clk 0:01:00.9]} 13... Bd7 {[%clk 0:02:15.2]} 14. Qb1
{[%clk 0:00:44.9]} 14... axb5 {[%clk 0:02:07.7]} 15. axb5 {[%clk 0:00:36.8]}
15... b6 {[%clk 0:02:07.9]} 16. Qb4 {[%clk 0:00:14.2]} 16... Nd5 {[%clk
0:01:57.3]} 17. Qb2 {[%clk 0:00:12.4]} 17... f5 {[%clk 0:01:50.1]} 18. dxe5
{[%clk 0:00:10.4]} 18... dxe5 {[%clk 0:01:48.5]} 19. e4 {[%clk 0:00:10.8]} 19...
Nf4 {[%clk 0:01:47.4]} 20. Rfe1 {[%clk 0:00:09.2]} 20... Nxe2+ {[%clk
0:01:44.1]} 21. Rxe2 {[%clk 0:00:09.1]} 21... f4 {[%clk 0:01:44.3]} 22. c4
{[%clk 0:00:05.8]} 22... g5 {[%clk 0:01:41.9]} 23. Bxg5 {[%clk 0:00:05.9]} 23...
hxg5 {[%clk 0:01:41.3]} 24. Nxg5 {[%clk 0:00:06.4]} 24... Qg6 {[%clk 0:01:40.1]}
25. Ngf3 {[%clk 0:00:04.7]} 25... Bh3 {[%clk 0:01:35.9]} 26. Nh4 {[%clk
0:00:04]} 26... Qh5 {[%clk 0:01:33.6]} 27. Ndf3 {[%clk 0:00:04.9]} 27... Nxc4
{[%clk 0:01:27.8]} 28. Qc1 {[%clk 0:00:04.7]} 28... Be6 {[%clk 0:01:25.6]} 29.
Rxa8 {[%clk 0:00:04]} 29... Rxa8 {[%clk 0:01:24.9]} 30. h3 {[%clk 0:00:04.9]}
30... Bf6 {[%clk 0:01:24.6]} 31. Rc2 {[%clk 0:00:04.6]} 31... Qf7 {[%clk
0:01:17.3]} 32. Nf5 {[%clk 0:00:03.3]} 32... Bxf5 {[%clk 0:01:16.9]} 0-1

[Event "*** Titled Tuesday Blitz"]
[Site "Chess.com"]
[Date "2021.02.16"]
[Round "3"]
[White "AlexNovitz"]
[Black "Triumphmate"]
[Result "1-0"]
[WhiteElo "2200"]
[BlackElo "2352"]
[TimeControl "180+1"]
[EndTime "10:29:47 PST"]
[Termination "AlexNovitz won by checkmate"]

1. e4 {[%clk 0:03:00.9]} 1... d5 {[%clk 0:02:59.5]} 2. exd5 {[%clk 0:03:00.6]}
2... Nf6 {[%clk 0:02:58.1]} 3. c4 {[%clk 0:03:00.7]} 3... c6 {[%clk 0:02:57.3]}
4. Nc3 {[%clk 0:03:00.5]} 4... cxd5 {[%clk 0:02:57.4]} 5. d4 {[%clk 0:03:01]}
5... Nc6 {[%clk 0:02:57.9]} 6. Be3 {[%clk 0:02:59.8]} 6... Bg4 {[%clk
0:02:56.6]} 7. Qb3 {[%clk 0:02:56.4]} 7... Rb8 {[%clk 0:02:54.7]} 8. h3 {[%clk
0:02:54.9]} 8... Be6 {[%clk 0:02:54.2]} 9. c5 {[%clk 0:02:54.1]} 9... Bf5 {[%clk
0:02:50.3]} 10. Nf3 {[%clk 0:02:53.7]} 10... e6 {[%clk 0:02:13]} 11. Bf4 {[%clk
0:02:47.9]} 11... Rc8 {[%clk 0:02:05.4]} 12. Qxb7 {[%clk 0:02:44.8]} 12... Be7
{[%clk 0:02:04.6]} 13. Bb5 {[%clk 0:02:43.6]} 13... Qd7 {[%clk 0:02:01.2]} 14.
Qa6 {[%clk 0:02:26]} 14... O-O {[%clk 0:01:23.7]} 15. Ne5 {[%clk 0:02:24.6]}
15... Nxe5 {[%clk 0:01:23.7]} 16. Bxd7 {[%clk 0:02:23.6]} 16... Nexd7 {[%clk
0:01:24.6]} 17. O-O {[%clk 0:02:17.4]} 17... Ne4 {[%clk 0:01:21.1]} 18. Nxe4
{[%clk 0:02:13]} 18... Bxe4 {[%clk 0:01:22]} 19. b4 {[%clk 0:02:09.9]} 19... Bf6
{[%clk 0:01:14.1]} 20. Be3 {[%clk 0:02:03.6]} 20... Nb8 {[%clk 0:00:59.9]} 21.
Qxa7 {[%clk 0:02:00.6]} 21... Nc6 {[%clk 0:00:59.2]} 22. Qa4 {[%clk 0:02:00.1]}
22... Nxd4 {[%clk 0:00:58.4]} 23. Rad1 {[%clk 0:01:51.1]} 23... Bc2 {[%clk
0:00:53.6]} 24. Qa3 {[%clk 0:01:36.3]} 24... Bxd1 {[%clk 0:00:47.1]} 25. Bxd4
{[%clk 0:01:28.3]} 25... Be2 {[%clk 0:00:43.8]} 26. Bxf6 {[%clk 0:01:27.2]}
26... Bxf1 {[%clk 0:00:41.6]} 27. Qg3 {[%clk 0:01:25.9]} 27... g6 {[%clk
0:00:38.8]} 28. Kxf1 {[%clk 0:01:25.9]} 28... h5 {[%clk 0:00:33.9]} 29. Qg5
{[%clk 0:01:22.2]} 29... Kh7 {[%clk 0:00:34.1]} 30. g4 {[%clk 0:01:22]} 30...
Rg8 {[%clk 0:00:27.3]} 31. gxh5 {[%clk 0:01:16.7]} 31... Ra8 {[%clk 0:00:27.6]}
32. hxg6+ {[%clk 0:01:02.3]} 32... Rxg6 {[%clk 0:00:27.8]} 33. Qh5+ {[%clk
0:01:01]} 33... Rh6 {[%clk 0:00:26]} 34. Qxf7# {[%clk 0:01:00.9]} 1-0

[Event "*** Titled Tuesday Blitz"]
[Site "Chess.com"]
[Date "2021.02.16"]
[Round "3"]
[White "GregShahade"]
[Black "rasmussvane"]
[Result "0-1"]
[WhiteElo "2654"]
[BlackElo "2919"]
[TimeControl "180+1"]
[EndTime "10:29:53 PST"]
[Termination "rasmussvane won by resignation"]

1. e4 {[%clk 0:03:00.9]} 1... c6 {[%clk 0:03:00]} 2. Nc3 {[%clk 0:03:00.4]} 2...
d5 {[%clk 0:03:00.9]} 3. Nf3 {[%clk 0:03:00.7]} 3... dxe4 {[%clk 0:03:01.2]} 4.
Nxe4 {[%clk 0:03:01.6]} 4... Nf6 {[%clk 0:03:02.1]} 5. Qe2 {[%clk 0:03:01.3]}
5... Nxe4 {[%clk 0:03:02.8]} 6. Qxe4 {[%clk 0:03:02.2]} 6... Qa5 {[%clk
0:03:03.6]} 7. Bc4 {[%clk 0:02:59.7]} 7... Bf5 {[%clk 0:03:03.8]} 8. Qe2 {[%clk
0:02:52.4]} 8... e6 {[%clk 0:03:03.4]} 9. O-O {[%clk 0:02:50.8]} 9... Nd7 {[%clk
0:02:48.1]} 10. d4 {[%clk 0:02:50]} 10... Bd6 {[%clk 0:02:47.6]} 11. c3 {[%clk
0:02:44.8]} 11... O-O {[%clk 0:02:44.6]} 12. Re1 {[%clk 0:02:42.8]} 12... Bg4
{[%clk 0:02:37.1]} 13. h3 {[%clk 0:02:43]} 13... Bh5 {[%clk 0:02:37.3]} 14. Bd3
{[%clk 0:02:25.4]} 14... Bg6 {[%clk 0:02:32.7]} 15. Bxg6 {[%clk 0:02:23.1]}
15... hxg6 {[%clk 0:02:33.6]} 16. Be3 {[%clk 0:02:13.6]} 16... Rfe8 {[%clk
0:02:33]} 17. a3 {[%clk 0:02:11.6]} 17... Rac8 {[%clk 0:02:32.4]} 18. Rad1
{[%clk 0:02:10.9]} 18... Qf5 {[%clk 0:02:28.9]} 19. Qd3 {[%clk 0:01:58]} 19...
Nf6 {[%clk 0:02:24]} 20. Bc1 {[%clk 0:01:46.2]} 20... Nd5 {[%clk 0:02:16]} 21.
Re4 {[%clk 0:01:44.2]} 21... Nf6 {[%clk 0:02:11.5]} 22. Ree1 {[%clk 0:01:35]}
22... Bc7 {[%clk 0:02:08.6]} 23. Qxf5 {[%clk 0:01:20.8]} 23... gxf5 {[%clk
0:02:08.5]} 24. Kf1 {[%clk 0:01:20.7]} 24... Kf8 {[%clk 0:01:53.6]} 25. Ne5
{[%clk 0:01:20]} 25... Nd5 {[%clk 0:01:37.3]} 26. Nd3 {[%clk 0:01:18.9]} 26...
Bd6 {[%clk 0:01:34.3]} 27. c4 {[%clk 0:01:10.6]} 27... Nf6 {[%clk 0:01:34.5]}
28. Bf4 {[%clk 0:01:10.2]} 28... Rcd8 {[%clk 0:01:28.5]} 29. Bxd6+ {[%clk
0:01:06.6]} 29... Rxd6 {[%clk 0:01:28.3]} 30. Ne5 {[%clk 0:00:54.9]} 30... Red8
{[%clk 0:01:27.5]} 31. Nf3 {[%clk 0:00:54]} 31... c5 {[%clk 0:01:27.6]} 32. d5
{[%clk 0:00:49.1]} 32... exd5 {[%clk 0:01:27.3]} 33. cxd5 {[%clk 0:00:35.3]}
33... Rxd5 {[%clk 0:01:27.2]} 34. Rc1 {[%clk 0:00:32.2]} 34... Ne4 {[%clk
0:01:22.8]} 35. Rc2 {[%clk 0:00:29]} 35... Rd3 {[%clk 0:01:17.5]} 36. Ke2 {[%clk
0:00:26.5]} 36... b6 {[%clk 0:01:13.6]} 37. Rec1 {[%clk 0:00:22.1]} 37... g6
{[%clk 0:01:10.5]} 38. b4 {[%clk 0:00:21]} 38... Rxa3 {[%clk 0:01:10]} 39. bxc5
{[%clk 0:00:20.6]} 39... Nxc5 {[%clk 0:01:07.8]} 40. Ne5 {[%clk 0:00:20.2]}
40... Re8 {[%clk 0:01:06.9]} 41. f4 {[%clk 0:00:18.6]} 41... f6 {[%clk
0:01:07.1]} 0-1

[Event "*** Titled Tuesday Blitz"]
[Site "Chess.com"]
[Date "2021.02.16"]
[Round "3"]
[White "BikingBrian"]
[Black "Klavdia_Nik"]
[Result "1-0"]
[WhiteElo "2324"]
[BlackElo "2046"]
[TimeControl "180+1"]
[EndTime "10:29:56 PST"]
[Termination "BikingBrian won on time"]

1. d4 {[%clk 0:03:00.9]} 1... Nf6 {[%clk 0:02:57.2]} 2. Bg5 {[%clk 0:02:59.9]}
2... e6 {[%clk 0:02:53.1]} 3. Nd2 {[%clk 0:02:59.3]} 3... d5 {[%clk 0:02:36.5]}
4. e3 {[%clk 0:02:59.2]} 4... c5 {[%clk 0:02:32]} 5. c3 {[%clk 0:02:58.8]} 5...
Nc6 {[%clk 0:02:31.1]} 6. Bd3 {[%clk 0:02:57.3]} 6... Be7 {[%clk 0:02:30.8]} 7.
f4 {[%clk 0:02:57.4]} 7... a6 {[%clk 0:02:24.1]} 8. Ngf3 {[%clk 0:02:57.1]} 8...
Nd7 {[%clk 0:02:06.9]} 9. O-O {[%clk 0:02:46.1]} 9... f5 {[%clk 0:01:44.4]} 10.
Ne5 {[%clk 0:02:25.3]} 10... O-O {[%clk 0:01:35.1]} 11. Bxe7 {[%clk 0:02:03.8]}
11... Qxe7 {[%clk 0:01:30.6]} 12. Qh5 {[%clk 0:02:03.3]} 12... Nf6 {[%clk
0:01:22.2]} 13. Qh4 {[%clk 0:02:01]} 13... Ne4 {[%clk 0:00:56.2]} 14. Qxe7
{[%clk 0:01:57.6]} 14... Nxe7 {[%clk 0:00:56.1]} 15. Nxe4 {[%clk 0:01:55.6]}
15... fxe4 {[%clk 0:00:53.9]} 16. Bc2 {[%clk 0:01:49]} 16... Nf5 {[%clk
0:00:40.8]} 17. Rae1 {[%clk 0:01:47.8]} 17... c4 {[%clk 0:00:19.9]} 18. g4
{[%clk 0:01:46.2]} 18... Nh4 {[%clk 0:00:17.7]} 19. Kf2 {[%clk 0:01:33.5]} 19...
Nf3 {[%clk 0:00:15.3]} 20. Nxf3 {[%clk 0:01:33.1]} 20... exf3 {[%clk 0:00:15.9]}
21. Kxf3 {[%clk 0:01:33.5]} 21... Bd7 {[%clk 0:00:15.4]} 22. e4 {[%clk
0:01:32.9]} 22... g6 {[%clk 0:00:12.7]} 23. exd5 {[%clk 0:01:31.2]} 23... exd5
{[%clk 0:00:11.8]} 24. Re5 {[%clk 0:01:31.1]} 24... Bc6 {[%clk 0:00:10.7]} 25.
Rfe1 {[%clk 0:01:31.3]} 25... Rf7 {[%clk 0:00:10.9]} 26. Kg3 {[%clk 0:01:28.8]}
26... Raf8 {[%clk 0:00:09.6]} 27. f5 {[%clk 0:01:29.2]} 27... gxf5 {[%clk
0:00:09.1]} 28. Bxf5 {[%clk 0:01:29.2]} 28... Kg7 {[%clk 0:00:08.1]} 29. h4
{[%clk 0:01:24.6]} 29... h6 {[%clk 0:00:07.8]} 30. R1e3 {[%clk 0:01:21.7]} 30...
a5 {[%clk 0:00:05.5]} 31. Re7 {[%clk 0:01:21]} 31... a4 {[%clk 0:00:05]} 32. a3
{[%clk 0:01:19.8]} 32... Rxe7 {[%clk 0:00:04.2]} 33. Rxe7+ {[%clk 0:01:19.3]}
33... Rf7 {[%clk 0:00:04.9]} 34. Rxf7+ {[%clk 0:01:19.1]} 34... Kxf7 {[%clk
0:00:04.6]} 35. Kf4 {[%clk 0:01:20]} 35... Kf6 {[%clk 0:00:04.4]} 36. g5+ {[%clk
0:01:19.8]} 36... hxg5+ {[%clk 0:00:05]} 37. hxg5+ {[%clk 0:01:20.7]} 37... Kg7
{[%clk 0:00:04.6]} 38. Ke5 {[%clk 0:01:21.1]} 38... Kf7 {[%clk 0:00:04.2]} 39.
Be6+ {[%clk 0:01:19.7]} 39... Kg6 {[%clk 0:00:04]} 40. Bxd5 {[%clk 0:01:20.3]}
1-0

[Event "*** Titled Tuesday Blitz"]
[Site "Chess.com"]
[Date "2021.02.16"]
[Round "3"]
[White "Sibelephant"]
[Black "Faqade"]
[Result "1-0"]
[WhiteElo "3026"]
[BlackElo "2684"]
[TimeControl "180+1"]
[EndTime "10:29:57 PST"]
[Termination "Sibelephant won on time"]

1. Nf3 {[%clk 0:02:59]} 1... Nf6 {[%clk 0:03:00.2]} 2. g3 {[%clk 0:02:59.2]}
2... g6 {[%clk 0:03:00.5]} 3. b3 {[%clk 0:02:59.7]} 3... Bg7 {[%clk 0:03:00.8]}
4. Bb2 {[%clk 0:02:59.8]} 4... O-O {[%clk 0:03:01.3]} 5. Bg2 {[%clk 0:03:00.2]}
5... d6 {[%clk 0:03:01.7]} 6. d4 {[%clk 0:03:00]} 6... a5 {[%clk 0:03:02.1]} 7.
O-O {[%clk 0:02:59]} 7... a4 {[%clk 0:03:02.2]} 8. b4 {[%clk 0:02:59.5]} 8... e5
{[%clk 0:02:54.1]} 9. dxe5 {[%clk 0:02:58.5]} 9... Ng4 {[%clk 0:02:53]} 10. Qc1
{[%clk 0:02:34.9]} 10... Nxe5 {[%clk 0:02:15.7]} 11. Nxe5 {[%clk 0:02:29]} 11...
dxe5 {[%clk 0:02:16.6]} 12. Rd1 {[%clk 0:02:29.1]} 12... Qe7 {[%clk 0:02:15]}
13. Nc3 {[%clk 0:02:28.3]} 13... c6 {[%clk 0:02:05.9]} 14. Ba3 {[%clk
0:02:20.1]} 14... Re8 {[%clk 0:01:12]} 15. b5 {[%clk 0:02:18.6]} 15... Qe6
{[%clk 0:01:12.5]} 16. bxc6 {[%clk 0:02:14.3]} 16... bxc6 {[%clk 0:01:10.8]} 17.
Ne4 {[%clk 0:02:13.4]} 17... Ba6 {[%clk 0:00:53.8]} 18. Qe3 {[%clk 0:02:03.2]}
18... h6 {[%clk 0:00:17]} 19. h4 {[%clk 0:01:38.8]} 19... Kh8 {[%clk 0:00:08.6]}
20. Rd6 {[%clk 0:01:33]} 20... Qc4 {[%clk 0:00:08]} 21. Nf6 {[%clk 0:01:19.1]}
21... Bxf6 {[%clk 0:00:03]} 22. Qxh6+ {[%clk 0:01:18.8]} 22... Kg8 {[%clk
0:00:02.8]} 23. Rxf6 {[%clk 0:01:19.4]} 23... Qc3 {[%clk 0:00:02.9]} 24. Qc1
{[%clk 0:01:09.5]} 24... Bxe2 {[%clk 0:00:02.5]} 25. Bb2 {[%clk 0:01:04.6]}
25... Qc5 {[%clk 0:00:02.9]} 26. Qd2 {[%clk 0:01:03.2]} 26... a3 {[%clk
0:00:02.8]} 27. Bc3 {[%clk 0:01:01.8]} 27... Bh5 {[%clk 0:00:02.6]} 28. Be4
{[%clk 0:00:57]} 1-0

[Event "*** Titled Tuesday Blitz"]
[Site "Chess.com"]
[Date "2021.02.16"]
[Round "3"]
[White "Maghalashvili"]
[Black "Sokoloco"]
[Result "1-0"]
[WhiteElo "2716"]
[BlackElo "2469"]
[TimeControl "180+1"]
[EndTime "10:29:58 PST"]
[Termination "Maghalashvili won by resignation"]

1. Nf3 {[%clk 0:02:57.7]} 1... g6 {[%clk 0:02:55.9]} 2. c4 {[%clk 0:02:57.2]}
2... Bg7 {[%clk 0:02:55.8]} 3. d4 {[%clk 0:02:57.9]} 3... d6 {[%clk 0:02:52.7]}
4. g3 {[%clk 0:02:57.7]} 4... Nf6 {[%clk 0:02:49]} 5. Bg2 {[%clk 0:02:58.3]}
5... O-O {[%clk 0:02:48.4]} 6. O-O {[%clk 0:02:59.2]} 6... c6 {[%clk 0:02:47.4]}
7. Nc3 {[%clk 0:02:58.3]} 7... Bf5 {[%clk 0:02:47.2]} 8. Nh4 {[%clk 0:02:47.7]}
8... Bd7 {[%clk 0:02:34.4]} 9. e4 {[%clk 0:02:44.2]} 9... e5 {[%clk 0:02:23.8]}
10. dxe5 {[%clk 0:02:38.7]} 10... dxe5 {[%clk 0:02:23.5]} 11. Qd6 {[%clk
0:02:36.7]} 11... Be6 {[%clk 0:02:07.9]} 12. c5 {[%clk 0:02:25]} 12... Qxd6
{[%clk 0:02:01.9]} 13. cxd6 {[%clk 0:02:25.9]} 13... Rd8 {[%clk 0:02:02.2]} 14.
Rd1 {[%clk 0:02:18.8]} 14... Ne8 {[%clk 0:01:37.5]} 15. f4 {[%clk 0:01:56.2]}
15... Rxd6 {[%clk 0:01:29.2]} 16. Be3 {[%clk 0:01:51.4]} 16... Na6 {[%clk
0:01:19.3]} 17. f5 {[%clk 0:01:49]} 17... gxf5 {[%clk 0:00:37]} 18. exf5 {[%clk
0:01:47.6]} 18... Bd5 {[%clk 0:00:22]} 19. Nxd5 {[%clk 0:01:39.9]} 19... cxd5
{[%clk 0:00:21.3]} 20. Rxd5 {[%clk 0:01:40.5]} 20... Rad8 {[%clk 0:00:20.1]} 21.
Rxd6 {[%clk 0:01:37.9]} 21... Nxd6 {[%clk 0:00:21]} 22. Rd1 {[%clk 0:01:27.8]}
22... Bf6 {[%clk 0:00:21.3]} 23. Bxa7 {[%clk 0:01:22.1]} 23... Nb5 {[%clk
0:00:05.9]} 24. Rxd8+ {[%clk 0:01:18.5]} 24... Bxd8 {[%clk 0:00:06.8]} 25. Be3
{[%clk 0:01:17.1]} 25... b6 {[%clk 0:00:02.2]} 26. Bf1 {[%clk 0:01:14.8]} 26...
Nbc7 {[%clk 0:00:02.3]} 27. Bxb6 {[%clk 0:01:12.8]} 27... Bxh4 {[%clk
0:00:02.9]} 28. gxh4 {[%clk 0:01:11.9]} 28... Kg7 {[%clk 0:00:03.5]} 29. b4
{[%clk 0:01:11.8]} 29... Nxb4 {[%clk 0:00:02.6]} 30. Bxc7 {[%clk 0:01:11.3]}
30... Nxa2 {[%clk 0:00:03.3]} 31. Bxe5+ {[%clk 0:01:11.4]} 31... Kh6 {[%clk
0:00:04]} 32. Bf4+ {[%clk 0:01:10]} 32... Kh5 {[%clk 0:00:03.8]} 33. Bd2 {[%clk
0:01:09.5]} 33... Kxh4 {[%clk 0:00:03.4]} 34. Bc4 {[%clk 0:01:09.6]} 1-0

[Event "*** Titled Tuesday Blitz"]
[Site "Chess.com"]
[Date "2021.02.16"]
[Round "3"]
[White "WeAintSurePal"]
[Black "Murad_Ibrahimli"]
[Result "0-1"]
[WhiteElo "2449"]
[BlackElo "2843"]
[TimeControl "180+1"]
[EndTime "10:30:00 PST"]
[Termination "Murad_Ibrahimli won by checkmate"]

1. d4 {[%clk 0:03:00.9]} 1... g6 {[%clk 0:02:58.6]} 2. c4 {[%clk 0:02:58.8]}
2... Bg7 {[%clk 0:02:56.9]} 3. e4 {[%clk 0:02:59.4]} 3... d6 {[%clk 0:02:56.3]}
4. Be3 {[%clk 0:02:59.8]} 4... Nf6 {[%clk 0:02:56.2]} 5. Nc3 {[%clk 0:02:59.8]}
5... O-O {[%clk 0:02:54.8]} 6. Be2 {[%clk 0:02:59.7]} 6... c5 {[%clk 0:02:53.6]}
7. Nf3 {[%clk 0:02:46.8]} 7... Bg4 {[%clk 0:02:43.6]} 8. d5 {[%clk 0:02:36]}
8... Bxf3 {[%clk 0:02:37.5]} 9. gxf3 {[%clk 0:02:32]} 9... Nbd7 {[%clk
0:02:38.4]} 10. Qd2 {[%clk 0:02:30.4]} 10... a6 {[%clk 0:02:36.8]} 11. a4 {[%clk
0:02:29.9]} 11... Qa5 {[%clk 0:02:36.3]} 12. O-O {[%clk 0:02:18.5]} 12... Qb4
{[%clk 0:02:20.8]} 13. a5 {[%clk 0:02:07.7]} 13... Ne8 {[%clk 0:02:01.4]} 14.
Bh6 {[%clk 0:01:56.8]} 14... Bxh6 {[%clk 0:01:52.4]} 15. Qxh6 {[%clk 0:01:57.7]}
15... b6 {[%clk 0:01:45.7]} 16. Qe3 {[%clk 0:01:25.8]} 16... bxa5 {[%clk
0:01:42.8]} 17. Ra4 {[%clk 0:01:24.4]} 17... Qb6 {[%clk 0:01:35.8]} 18. Rfa1
{[%clk 0:01:22.9]} 18... Nef6 {[%clk 0:01:26.9]} 19. Rxa5 {[%clk 0:01:20.4]}
19... Rfe8 {[%clk 0:01:18.9]} 20. f4 {[%clk 0:00:52.3]} 20... e6 {[%clk
0:01:16.7]} 21. Bf3 {[%clk 0:00:46.1]} 21... e5 {[%clk 0:01:06.1]} 22. f5 {[%clk
0:00:44.7]} 22... gxf5 {[%clk 0:01:03.5]} 23. Qg5+ {[%clk 0:00:28.3]} 23... Kh8
{[%clk 0:01:02.7]} 24. Qxf5 {[%clk 0:00:29.2]} 24... Qxb2 {[%clk 0:01:02.4]} 25.
Nb5 {[%clk 0:00:21.7]} 25... Rg8+ {[%clk 0:01:00.2]} 26. Kh1 {[%clk 0:00:21.5]}
26... Qxf2 {[%clk 0:00:55.5]} 27. Nxd6 {[%clk 0:00:20.7]} 27... Rg7 {[%clk
0:00:55.5]} 28. Qh3 {[%clk 0:00:15.4]} 28... Rag8 {[%clk 0:00:54.1]} 29. Qf1
{[%clk 0:00:11.4]} 29... Rg1+ {[%clk 0:00:51.3]} 30. Qxg1 {[%clk 0:00:12.1]}
30... Qxf3+ {[%clk 0:00:52.2]} 31. Qg2 {[%clk 0:00:13]} 31... Qxg2# {[%clk
0:00:52.6]} 0-1